Cogmind - Beta 14 @@@ ROGUE MODE // 2024.12.08 @ 21:37:18 Player: sve9 Result: Destroyed by S-43 Plague with Heavy Machine Gun Performance ------------- Evolutions (7) 3500 Regions Visited (26) 5200 Robots Destroyed (212) 1060 Value Destroyed (7324) 7324 Prototype IDs (51) 1020 Alien Tech Used (0) 0 Bonus (3146) 3146 TOTAL SCORE: 21250 Bonus ------- High Alert Combat Kills 78 Follower Combat Kills 868 Aligned with FarCom 300 Met Data Miner 300 Met Imprinter 300 Met Warlord at Base 500 MAIN.C Attacked Warlord 500 Warlord Defense Kills 300 Cogmind --------- Core Integrity 0/1300 Matter 231/300 Energy 99/100 System Corruption 2% Temperature Cool (0) Movement Core (50) Location -3/Research Parts ------- > --- POWER (2) -------- (None) > --- PROPULSION (5) --- (None) > --- UTILITY (10) ----- Advanced System Shield > --- WEAPON (4) ------- (None) > --- INVENTORY (5) ---- Large Matter Pod (150) Long-range Tractor Beam Improved Trap Extractor (5/6 Dirty Bomb) KE Penetrator Heavy Gauss Cannon Peak State ------------ > --- POWER ------------ Vortex Chain Reactor > --- PROPULSION ------- Enhanced Flexi-carbon Leg Enhanced Flexi-carbon Leg Advanced Myomer Leg Enhanced Biometal Leg > --- UTILITY ---------- High-capacity Storage Unit Advanced Targeting Computer Target Analyzer Makeshift Transmission Jammer Cloak of Protection Improved Heavy Armor Plating Thermal Barrier Improved Force Field > --- WEAPON ----------- Vortex Rail Heavy Battle Rifle Heavy Battle Rifle Falx > --- INVENTORY -------- Makeshift Power Source Cold Fusion Reactor Enhanced Flexi-carbon Leg Enhanced Flexi-carbon Leg Advanced Cooling System Large Matter Pod Advanced Terrain Scanner Advanced Targeting Computer Improved Shield Generator Advanced Hacking Suite Long-range Tractor Beam Improved Trap Extractor Vortex Rail Vortex Rail [Rating: 127] Favorites ----------- Power Cold Fusion Reactor Engine Ion Engine Power Core Neutrino Core Reactor Cold Fusion Reactor Propulsion Light Treads Treads Light Treads Leg Enhanced Flexi-carbon Leg Wheel Armored Huge Wheel Flight Unit Impulse Thruster Array Utility High-capacity Storage Unit Device Transmission Jammer Storage High-capacity Storage Unit Processor Advanced Targeting Computer Hackware Advanced System Shield Protection Improved Heavy Armor Plating Weapon Improved Assault Rifle Energy Gun Shock Rifle Ballistic Gun Improved Assault Rifle Ballistic Cannon Heavy Gauss Cannon Launcher Mini Smartbomb Launcher Slashing Weapon Falx Piercing Weapon CR-A16's Pointy Stick Build | -11 -10 -10 -9 -9 -9 -8 -8 -7 -7 -7 -7 -6 -6 -6 -6 -6 -5 -5 -5 -5 -5 -4 -4 -4 -4 -3 ------- Run | Yrd Mat Min Mat Min Exi Min Mat Fac Low Low Dat Pro Fac Low Low Zio Pro Fac Upp Upp War Pro Fac Upp Upp Res Slots Evolved 14 | . . . 2 . . . 2 2 . . . . 2 . . . . 2 . . . . 2 . . 2 Power 1 | . . . . . . . . . . . . . . . . . . 1 . . . . . . . . Propulsion 3 | . . . 1 . . . . 1 . . . . . . . . . . . . . . . . . 1 Utility 8 | . . . . . . . 1 1 . . . . 2 . . . . 1 . . . . 2 . . 1 Weapon 2 | . . . 1 . . . 1 . . . . . . . . . . . . . . . . . . . Parts Attached 226 | 7 4 5 16 2 1 4 7 23 6 4 . 6 22 7 9 9 5 13 4 8 22 4 13 12 1 12 Power 14 | 1 . 1 2 . . . . 1 . . . 1 3 . . . . 1 . 1 1 . . . . 2 Engine 6 | 1 . 1 2 . . . . 1 . . . . . . . . . . . . . . . . . 1 Core 2 | . . . . . . . . . . . . 1 1 . . . . . . . . . . . . . Reactor 6 | . . . . . . . . . . . . . 2 . . . . 1 . 1 1 . . . . 1 Propulsion 51 | 2 . 2 8 2 . . 2 10 1 1 . 1 4 3 . . . 5 . . 1 . 3 2 . 4 Treads 34 | 2 . 1 8 2 . . 2 10 1 1 . 1 3 3 . . . . . . . . . . . . Leg 14 | . . 1 . . . . . . . . . . . . . . . 5 . . 1 . 3 2 . 2 Wheel 1 | . . . . . . . . . . . . . 1 . . . . . . . . . . . . . Hover . | . . . . . . . . . . . . . . . . . . . . . . . . . . . Flight 2 | . . . . . . . . . . . . . . . . . . . . . . . . . . 2 Utility 71 | 2 2 2 1 . 1 . 1 6 1 1 . 3 5 . 3 6 1 1 2 5 11 1 6 7 . 3 Device 46 | 1 . 2 . . . . . 3 . . . 1 2 . 2 4 1 1 2 5 10 1 5 6 . . Storage 4 | 1 2 . . . . . . 1 . . . . . . . . . . . . . . . . . . Processor 7 | . . . . . . . 1 1 . 1 . . 2 . . . . . . . . . . 1 . 1 Hackware 2 | . . . . . . . . . . . . . . . . . . . . . . . . . . 2 Protection 12 | . . . 1 . 1 . . 1 1 . . 2 1 . 1 2 . . . . 1 . 1 . . . Artifact . | . . . . . . . . . . . . . . . . . . . . . . . . . . . Weapon 90 | 2 2 . 5 . . 4 4 6 4 2 . 1 10 4 6 3 4 6 2 2 9 3 4 3 1 3 Energy Gun 15 | 1 . . 1 . . . . . 1 1 . . 2 1 2 . . . . . 1 . 2 2 . 1 Energy Cannon . | . . . . . . . . . . . . . . . . . . . . . . . . . . . Ballistic Gun 46 | 1 1 . 4 . . 2 4 3 2 . . . 5 2 3 2 3 3 1 1 5 1 . 1 1 1 Ballistic Cannon 1 | . . . . . . . . . . . . . . . . . . . . . . . . . . 1 Launcher 15 | . 1 . . . . 2 . . 1 1 . . 1 1 1 . 1 1 1 . 2 1 1 . . . Special Weapon . | . . . . . . . . . . . . . . . . . . . . . . . . . . . Impact Weapon . | . . . . . . . . . . . . . . . . . . . . . . . . . . . Slashing Weapon 12 | . . . . . . . . 3 . . . 1 2 . . 1 . 1 . 1 1 1 1 . . . Piercing Weapon 1 | . . . . . . . . . . . . . . . . . . 1 . . . . . . . . Special Melee Weapon . | . . . . . . . . . . . . . . . . . . . . . . . . . . . Unidentified Prototypes 16 | . . . 1 . . . . . . . . . 1 . . 1 . 2 . . 10 . 1 . . . Parts Lost 55 | . . . 2 . . . . 2 4 3 . 8 1 1 3 . 1 . . . . 1 5 8 . 16 Power 5 | . . . 1 . . . . . . 1 . 1 . . . . . . . . . . . . . 2 Propulsion 12 | . . . . . . . . 1 1 1 . 1 . 1 . . 1 . . . . . . 1 . 5 Utility 19 | . . . 1 . . . . . 1 1 . 3 . . 1 . . . . . . . 2 4 . 6 Weapon 19 | . . . . . . . . 1 2 . . 3 1 . 2 . . . . . . 1 3 3 . 3 Highest Loss Streak 6 | . . . 1 . . . . 1 4 3 . 5 1 1 1 . 1 . . . . 1 2 4 . 6 To Critical Strikes 1 | . . . . . . . . . . . . . . . . . . . . . . . . 1 . . Average Slot Usage (%) 91 | . 100 100 99 100 100 100 99 98 99 87 92 79 88 85 85 86 82 93 93 94 90 88 87 89 78 63 Engine 4 | . 14 14 10 11 11 11 9 7 7 . . . . . . . . . . . . . . . . . Reactor 3 | . . . . . . . . . . . . . 4 6 6 6 6 11 11 11 7 5 5 5 5 3 Treads 17 | . 28 28 32 33 33 33 27 29 29 29 30 28 20 12 13 13 8 . . . . . . . . . Leg 6 | . . . . . . . . . . . . . . . . . . 22 23 23 23 23 20 20 21 17 Wheel 1 | . . . . . . . . . . . . . 2 6 6 6 6 . . . . . . . . . Device 9 | . 14 14 5 . . . . 12 15 7 7 3 6 6 6 7 6 11 10 11 10 11 21 22 26 16 Storage 7 | . 14 14 11 11 11 11 9 7 7 7 7 7 6 6 6 6 6 5 5 5 5 5 5 5 5 3 Processor 7 | . . . . . . . 8 1 . 2 7 7 14 13 13 13 13 11 11 11 11 11 10 12 15 12 Protection 5 | . . . 5 11 11 11 9 7 7 7 7 7 6 6 5 5 6 5 5 5 5 5 5 2 . . Energy Gun 3 | . 14 14 2 . . . . . . 6 7 5 4 6 9 5 . . . . . . . 4 . . Ballistic Gun 20 | . 13 14 30 33 33 32 36 28 28 23 23 12 14 19 15 20 25 22 23 23 22 21 13 9 . 2 Slashing Weapon 1 | . . . . . . . . . . . . 1 4 . . . . . . . . 1 4 5 5 2 Peak Build Rating 127 | 7 8 11 20 21 21 21 26 37 38 38 32 36 58 67 67 68 68 92 92 92 112 107 123 127 107 117 Average Rating 54 | 5 7 8 17 20 21 20 25 34 36 31 32 30 44 63 65 64 65 88 89 90 100 105 116 120 101 89 On Entrance 52 | . 7 8 8 20 21 21 21 26 34 38 32 32 27 58 67 64 68 64 89 90 91 107 104 113 101 107 Naked Turns . | . . . . . . . . . . . . . . . . . . . . . . . . . . . Heaviest Build 137 | 15 30 32 41 39 39 39 42 75 77 77 65 73 86 86 86 96 85 97 97 105 115 112 128 137 98 98 Greatest Support 144 | 40 40 40 63 66 66 66 66 86 83 83 80 80 80 28 28 28 56 112 112 112 114 114 116 116 116 144 Greatest Overweight (x) 4 | 4 . 1 . . . . . 1 . 1 . 1 3 3 3 3 3 3 . . 1 . 1 1 . 3 Average Overweight (x) . | . . . . . . . . . . . . . 1 2 2 2 2 . . . . . . . . . Largest Inventory Capacity 20 | 8 15 15 15 15 15 15 15 20 20 20 20 20 20 20 20 20 20 20 20 20 20 20 20 20 20 20 Average Capacity 18 | 7 9 15 15 15 15 15 15 17 20 20 20 20 20 20 20 20 20 20 20 20 20 20 20 20 20 17 Most Carried 20 | 4 10 12 15 15 15 15 15 20 20 16 15 19 20 20 20 20 20 20 20 20 20 20 18 14 9 11 Average Carried 16 | 2 7 11 14 14 14 15 14 17 19 15 15 17 18 19 18 18 19 19 19 19 19 19 16 12 9 8 Final Capacity 20 | 8 15 15 15 15 15 15 15 20 20 20 20 20 20 20 20 20 20 20 20 20 20 20 20 20 20 5 Final Carried 20 | 4 10 12 15 15 15 15 15 20 16 15 15 15 20 20 17 20 20 19 20 20 20 19 14 9 9 5 Class Distribution -------------------- 31% | Scavenger-Gunner 21% | Skirmisher 12% | Mutant 9% | Tank 9% | Gunner 5% | Assassin 4% | Derelict-Gunner Dominant Class ---------------- Mutant | -10/Materials Mutant | -10/Mines Tank | -9/Materials Tank | -9/Mines Tank | -9/Exiles Skirmisher | -8/Mines Skirmisher | -8/Materials Skirmisher | -7/Factory Gunner | -7/Lower Caves Scavenger-Gunner | -7/Lower Caves Scavenger-Gunner | -7/Data Miner Scavenger-Gunner | -6/Proximity Caves Scavenger-Gunner | -6/Factory Scavenger-Gunner | -6/Lower Caves Scavenger-Gunner | -6/Lower Caves Scavenger-Gunner | -6/Zion Derelict-Gunner | -5/Proximity Caves Skirmisher | -5/Factory Gunner | -5/Upper Caves Gunner | -5/Upper Caves Commander-Tank | -5/Warlord Tank | -4/Proximity Caves Assassin | -4/Factory Derelict-Gunner | -4/Upper Caves Mutant | -4/Upper Caves Assassin | -3/Research Resources | -11 -10 -10 -9 -9 -9 -8 -8 -7 -7 -7 -7 -6 -6 -6 -6 -6 -5 -5 -5 -5 -5 -4 -4 -4 -4 -3 ----------- Run | Yrd Mat Min Mat Min Exi Min Mat Fac Low Low Dat Pro Fac Low Low Zio Pro Fac Upp Upp War Pro Fac Upp Upp Res Matter Collected 6106 | 250 169 69 658 147 31 78 396 841 176 165 . 241 448 251 155 66 235 97 199 195 352 99 351 386 41 10 Remotely . | . . . . . . . . . . . . . . . . . . . . . . . . . . . Salvage Created 7676 | 109 350 16 1228 147 . 116 518 1410 292 135 . 371 399 282 180 . 214 97 23 213 100 183 834 433 . 26 Parts 474 | 9 34 2 82 19 . 13 29 84 13 9 . 22 24 9 6 . 15 7 3 9 5 3 56 16 . 5 Haulers Intercepted 7 | . . . 4 . . . 1 1 . . . . . . . . . . . . . . 1 . . . Recyclers Shooed 4 | 1 1 . . . . . . . . . . . 2 . . . . . . . . . . . . . Parts Field Recycled . | . . . . . . . . . . . . . . . . . . . . . . . . . . . Retrieved Matter . | . . . . . . . . . . . . . . . . . . . . . . . . . . . Parts Self-Destructed 108 | . . . . . . . . . 13 7 . 14 . 9 6 . 8 . 13 19 . 3 . 16 . . Prevented 10 | . . . . . . . . . . . . . . 2 . . 6 . 2 . . . . . . . Kills | -11 -10 -10 -9 -9 -9 -8 -8 -7 -7 -7 -7 -6 -6 -6 -6 -6 -5 -5 -5 -5 -5 -4 -4 -4 -4 -3 ------- Run | Yrd Mat Min Mat Min Exi Min Mat Fac Low Low Dat Pro Fac Low Low Zio Pro Fac Upp Upp War Pro Fac Upp Upp Res Combat Hostiles Destroyed 152 | . 12 1 25 . . 6 8 22 9 5 . 5 7 7 3 . 7 2 2 5 3 4 7 12 . . Melee 2 | . . . . . . . . . . . . . . . . . . . . . . . 2 . . . Guns 113 | . 6 1 25 . . 1 8 22 7 2 . 5 4 4 3 . 3 2 . 5 . 1 2 12 . . AOE 37 | . 6 . . . . 5 . . 2 3 . . 3 3 . . 4 . 2 . 3 3 3 . . . Classes Destroyed 18 | 3 5 . 4 . . . 1 1 . . . 3 . . . . . . . 1 . . . . . . Worker 16 | 1 1 . 2 . . 2 . 3 . . . . . . . . . . . . . . 7 . . . Builder 13 | . 3 . . 1 . . . . . . . . 1 . . . . . . . . . 7 . . 1 Tunneler 7 | 1 . . . 6 . . . . . . . . . . . . . . . . . . . . . . Hauler 7 | . . . 4 . . . 1 1 . . . . . . . . . . . . . . 1 . . . Recycler 5 | 1 . . . . . . . . . . . . 1 . . . . . . . . . 3 . . . Operator 2 | . 1 . . . . . 1 . . . . . . . . . . . . . . . . . . . Watcher 9 | . 2 . 3 . . . 1 2 . . . . . . . . . . . . . . 1 . . . Swarmer 41 | . 6 1 7 . . 3 . . 3 4 . . 3 . . . 5 . 2 2 . . . 5 . . Grunt 56 | . 6 . 9 . . 2 5 7 5 . . . 1 6 2 . . . . 2 3 4 1 3 . . Brawler 5 | . . . 1 . . 1 . . 1 . . . . . 1 . . . . . . . . 1 . . Duelist 1 | . . . 1 . . . . . . . . . . . . . . . . . . . . . . . Protector 1 | . . . . . . . . . . . . 1 . . . . . . . . . . . . . . Sentry 22 | . . . 7 . . . 2 7 . 1 . 2 1 1 . . . . . . . . . 1 . . Demolisher 2 | . . . . . . . . . . . . 2 . . . . . . . . . . . . . . Hunter 7 | . . . . . . . 1 1 . . . . . . . . 2 . . . 1 . . 2 . . Programmer 17 | . . . . . . . . 7 . . . . 2 . . . . 2 . . . . 6 . . . Samaritan 2 | . . . . . . . . . . . . 2 . . . . . . . . . . . . . . Mutant 1 | . . . . . . . . . . . . . . . . . . . . 1 . . . . . . Best Kill Streak 12 | 2 11 1 6 2 . 4 3 7 6 4 . 1 3 4 3 . 5 1 2 4 3 4 12 5 . 1 Combat Bots Only 6 | . 6 1 6 . . 3 2 6 6 4 . 1 3 4 3 . 5 1 2 4 3 4 3 5 . . Max Kills in Single Turn 7 | 1 7 1 3 1 . 3 2 2 2 3 . 1 3 2 1 . 3 1 2 2 2 1 5 1 . 1 Gunslinging 1 | . . . . . . . 1 . . . . . . . . . . . . 1 . . . . . . Exploded 4 | . 4 . . . . 2 . . 2 3 . . 3 2 . . 3 . 2 . 2 1 1 . . . Melee 1 | . . . . . . . . . . . . . . . . . . . . . . . 1 . . . Uniques/NPCs Destroyed . | . . . . . . . . . . . . . . . . . . . . . . . . . . . Combat | -11 -10 -10 -9 -9 -9 -8 -8 -7 -7 -7 -7 -6 -6 -6 -6 -6 -5 -5 -5 -5 -5 -4 -4 -4 -4 -3 -------- Run | Yrd Mat Min Mat Min Exi Min Mat Fac Low Low Dat Pro Fac Low Low Zio Pro Fac Upp Upp War Pro Fac Upp Upp Res Hostile Shots Fired 1634 | . 37 2 79 . . 12 35 120 52 44 . 149 41 56 52 . 60 6 4 20 24 68 131 225 . 417 Missed 635 | . 12 . 17 . . 4 9 47 15 13 . 66 11 20 12 . 20 1 2 9 13 33 43 75 . 213 Damage Taken 12996 | . 264 33 770 . . 99 417 798 610 307 . 815 451 708 412 . 625 73 34 154 235 655 860 1486 . 3190 Core 2027 | . 60 . 94 . . . 28 43 32 . . 63 . 25 32 . 23 27 20 10 . 49 91 112 . 1318 Absorbed by Shields 1897 | . . . . . . . . . . . . . . . . . . 27 12 57 84 240 572 863 . 42 Ignored by Resistances 981 | . . . . . . . . . . . . 16 . . . . . . . . . . 372 388 . 205 Regen/Repaired (Parts) 126 | . . . . . . . . . . . . . . . . . . . . . 126 . . . . . Core Remaining (%) 85 | 100 . 76 . . . 76 94 . . . . 80 . . . . 90 . . . . 89 . . 82 . Volleys Fired 406 | 4 29 1 58 11 . 8 23 55 13 6 . 40 16 14 6 . 12 5 2 6 7 9 26 44 . 11 Largest 4 | 2 2 2 3 3 . 3 4 4 4 4 . 3 4 4 4 . 4 4 4 4 4 4 4 2 . 1 Hottest 150 | 70 70 70 120 69 . 69 96 96 99 115 . 76 124 150 150 . 102 108 108 108 108 108 125 78 . 61 Shots Fired 1108 | 8 56 2 172 33 . 16 91 218 41 21 . 65 42 44 20 1 35 20 5 24 13 19 65 86 . 11 Gun 1077 | 8 54 2 172 33 . 12 91 218 38 19 . 65 41 40 19 1 31 20 4 24 9 15 65 86 . 10 Cannon 1 | . . . . . . . . . . . . . . . . . . . . . . . . . . 1 Launcher 30 | . 2 . . . . 4 . . 3 2 . . 1 4 1 . 4 . 1 . 4 4 . . . . Special . | . . . . . . . . . . . . . . . . . . . . . . . . . . . Kinetic 972 | 4 27 1 164 33 . 12 91 218 38 19 . 65 29 30 14 1 31 20 4 24 9 15 51 67 . 5 Thermal 55 | 4 27 1 8 . . . . . . . . . . 10 5 . . . . . . . . . . . Explosive 26 | . 2 . . . . 4 . . 3 2 . . 1 4 1 . . . 1 . 4 4 . . . . Electromagnetic 16 | . . . . . . . . . . . . . 12 . . . 4 . . . . . . . . . Entropic 39 | . . . . . . . . . . . . . . . . . . . . . . . 14 19 . 6 Robot Hit Streak 25 | 3 14 5 23 25 . 12 15 22 10 4 . 17 11 11 12 . 13 8 1 3 15 17 7 10 . . Robot Miss Streak 5 | 1 2 . 3 2 . 1 4 5 3 1 . 2 2 2 1 . 3 3 4 3 . 2 4 3 . 2 Penetration Max 1 | . . . . . . . . . . . . . . . . . . . . . . . 1 . . . Secondary Targets 14 | . . . 4 . . . 1 1 2 . . . . . . . 1 . . 2 . . . 3 . . Max Gunslinging Chain 1 | . . . 1 . . . 1 1 1 . . . . . . . 1 . . 1 . . . 1 . . Shots Hit Robots 741 | 5 40 1 120 18 . 11 57 137 27 9 . 53 34 29 16 . 25 12 2 16 13 10 47 55 . 4 Core Hits 435 | 4 26 2 53 7 . 13 22 60 16 8 . 23 16 30 13 . 22 9 5 16 11 13 37 27 . 2 Critical Kills 7 | . . . 1 . . . . 2 1 . . 1 . 1 . . . . . . . . . 1 . . Critical Parts Destroyed 13 | . . . 1 . . . . 3 1 . . . 1 . . . . . . . . . 5 2 . . Critical Strikes 23 | . 1 . 3 . . . . 5 2 . . 1 1 1 . . . . . . . . 6 3 . . Burn 2 | . 1 . 1 . . . . . . . . . . . . . . . . . . . . . . . Destroy 14 | . . . 2 . . . . 5 2 . . 1 1 1 . . . . . . . . . 2 . . Sever 1 | . . . . . . . . . . . . . . . . . . . . . . . 1 . . . Detonate 6 | . . . . . . . . . . . . . . . . . . . . . . . 5 1 . . Melee Attacks 81 | . . . . . . . . 7 . . . 3 10 . . 1 . 5 . 1 7 . 29 . . 18 Impact . | . . . . . . . . . . . . . . . . . . . . . . . . . . . Slashing 79 | . . . . . . . . 7 . . . 3 10 . . 1 . 3 . 1 7 . 29 . . 18 Piercing 2 | . . . . . . . . . . . . . . . . . . 2 . . . . . . . . Sneak Attacks 8 | . . . . . . . . . . . . . 3 . . . . . . . 1 . 2 . . 2 Combat Hostiles . | . . . . . . . . . . . . . . . . . . . . . . . . . . . Follow-up Attacks . | . . . . . . . . . . . . . . . . . . . . . . . . . . . Damage Inflicted 20702 | 74 1230 28 1849 296 . 650 899 2611 988 412 . 941 1023 1167 342 . 627 326 138 309 861 821 3318 1462 . 330 Guns 13445 | 74 489 12 1840 296 . 123 899 2569 465 136 . 941 543 524 285 . 349 292 17 309 174 251 1408 1402 . 47 Cannons . | . . . . . . . . . . . . . . . . . . . . . . . . . . . Explosions 6166 | . 725 . . . . 527 . . 523 276 . . 258 643 57 . 278 . 121 . 600 570 1528 60 . . Melee 979 | . . . . . . . . 34 . . . . 222 . . . . . . . 87 . 382 . . 254 Ramming 112 | . 16 16 9 . . . . 8 . . . . . . . . . 34 . . . . . . . 29 Kinetic 11518 | 25 224 . 1765 296 . 123 899 2569 465 136 . 941 416 391 228 . 349 292 17 309 174 251 868 780 . . Thermal 2829 | 49 870 12 75 . . . . . . . . . 45 133 57 . . . . . . . 1528 60 . . Explosive 3650 | . 120 . . . . 527 . . 523 276 . . 213 643 57 . . . 121 . 600 570 . . . . Electromagnetic 405 | . . . . . . . . . . . . . 127 . . . 278 . . . . . . . . . Impact . | . . . . . . . . . . . . . . . . . . . . . . . . . . . Slashing 979 | . . . . . . . . 34 . . . . 222 . . . . . . . 87 . 382 . . 254 Piercing . | . . . . . . . . . . . . . . . . . . . . . . . . . . . Entropic 1209 | . . . . . . . . . . . . . . . . . . . . . . . 540 622 . 47 Highest Corruption 9 | . . . 4 4 4 4 1 6 6 6 6 6 1 1 1 1 . 2 2 2 2 . 9 9 9 2 Average Corruption 3 | . . . 4 4 4 4 1 4 6 6 6 6 1 1 1 1 . 1 2 2 2 . 4 9 9 1 Corruption Purged . | . . . . . . . . . . . . . . . . . . . . . . . . . . . Corruption Blocked . | . . . . . . . . . . . . . . . . . . . . . . . . . . . Effects 236 | . . . 23 4 8 14 4 36 16 24 4 21 9 4 3 1 . 5 3 7 2 . 12 34 2 . Message Errors 53 | . . . 5 . 3 4 1 7 5 8 2 3 . 2 . . . 3 . 2 . . 1 6 1 . Matter Fused 67 | . . . 5 1 3 5 1 10 6 6 2 5 3 . . . . 1 1 2 . . 4 11 1 . Heat Flow Errors 27 | . . . 3 . 1 2 1 5 . 3 . 2 4 1 1 . . . . 1 . . 2 1 . . Energy Discharges 30 | . . . 2 2 1 1 . 3 4 2 . 5 1 . . . . 1 1 1 . . 2 4 . . Parts Rejected 4 | . . . . . . . . . . . . . 1 . . . . . . . . . 1 2 . . Parts Fused 3 | . . . 1 . . . . 1 . . . . . . . . . . . 1 . . . . . . Data Loss (minor) 21 | . . . 3 1 . . . 4 1 2 . 2 . 1 1 . . . . . 1 . . 5 . . Data Loss (major) 7 | . . . 1 . . 2 . 1 . 1 . . . . 1 . . . 1 . . . . . . . Misfires 9 | . . . . . . . . 3 . 2 . 1 . . . 1 . . . . 1 . . 1 . . Alerts 4 | . . . 1 . . . . . . . . 2 . . . . . . . . . . . 1 . . Weapon Failures 11 | . . . 2 . . . 1 2 . . . 1 . . . . . . . . . . 2 3 . . Overload Shots . | . . . . . . . . . . . . . . . . . . . . . . . . . . . Overflow Damage 532 | . 170 . . . . 26 . . 3 14 . . 85 15 . . . . 23 . . . 138 . . 58 Projectiles . | . . . . . . . . . . . . . . . . . . . . . . . . . . . Explosions 355 | . 170 . . . . 26 . . 3 14 . . 3 15 . . . . 23 . . . 101 . . . Melee 177 | . . . . . . . . . . . . . 82 . . . . . . . . . 37 . . 58 Knockbacks 1 | . 1 . . . . . . . . . . . . . . . . . . . . . . . . . Impact 1 | . 1 . . . . . . . . . . . . . . . . . . . . . . . . . Kinetic . | . . . . . . . . . . . . . . . . . . . . . . . . . . . Secondary . | . . . . . . . . . . . . . . . . . . . . . . . . . . . Self-Inflicted Damage 322 | . . . . . . 3 . . 43 24 . . 40 63 8 . 16 . . . . 97 . 28 . . Shots 13 | . . . . . . 1 . . 2 1 . . 1 2 1 . 1 . . . . 3 . 1 . . Rammed 9 | . 4 3 1 . . . . 1 . . . . . . . . . . . . . . . . . . Targets Rammed 12 | . 4 3 1 . . . . 1 . . . . . . . . . 2 . . . . . . . 1 Kicked 3 | . . . . . . . . . . . . . . . . . . 2 . . . . . . . 1 Crushed . | . . . . . . . . . . . . . . . . . . . . . . . . . . . Highest Temperature 379 | 18 84 9 229 30 264 281 224 374 379 272 . 249 248 296 267 . 36 3 10 192 131 223 270 127 . . Average Temperature 75 | 8 29 6 33 12 134 83 68 103 184 95 . 116 78 101 77 . 16 2 6 43 55 132 82 43 . . Received Heat Transfer 2091 | . 114 . 222 . . 45 117 195 360 54 . 84 57 249 60 . 9 . 6 36 24 83 88 141 . 147 Effects 12 | . . . . . . 3 . 3 2 . . . . 1 . . . . . . . 3 . . . . Shutdowns 1 | . . . . . . . . . 1 . . . . . . . . . . . . . . . . . Energy Bleed 2 | . . . . . . . . . 1 . . . . 1 . . . . . . . . . . . . Interference 9 | . . . . . . 3 . 3 . . . . . . . . . . . . . 3 . . . . Siege Activations . | . . . . . . . . . . . . . . . . . . . . . . . . . . . Robots Corrupted . | . . . . . . . . . . . . . . . . . . . . . . . . . . . Combat Hostiles . | . . . . . . . . . . . . . . . . . . . . . . . . . . . Parts Fried . | . . . . . . . . . . . . . . . . . . . . . . . . . . . Impact Corruptions . | . . . . . . . . . . . . . . . . . . . . . . . . . . . Robots Melted . | . . . . . . . . . . . . . . . . . . . . . . . . . . . Combat Hostiles . | . . . . . . . . . . . . . . . . . . . . . . . . . . . Parts Melted 6 | . 2 . . . . . . . . . . 1 . . . . . . . . . . 3 . . . Heat Transferred 3352 | 148 1301 37 296 . . . . . . . . . 50 259 111 . . . . . . . 1100 50 . . Parts Sabotaged . | . . . . . . . . . . . . . . . . . . . . . . . . . . . Parts Stolen . | . . . . . . . . . . . . . . . . . . . . . . . . . . . Parts Stripped . | . . . . . . . . . . . . . . . . . . . . . . . . . . . Power Chain Reactions 2 | . . . . . . . . . . . . . 1 . . . 1 . . . . . . . . . Alert | -11 -10 -10 -9 -9 -9 -8 -8 -7 -7 -7 -7 -6 -6 -6 -6 -6 -5 -5 -5 -5 -5 -4 -4 -4 -4 -3 ------- Run | Yrd Mat Min Mat Min Exi Min Mat Fac Low Low Dat Pro Fac Low Low Zio Pro Fac Upp Upp War Pro Fac Upp Upp Res Peak Influence 579 | 15 573 164 579 231 . 199 304 351 . . . . 175 . . . . 191 . . . . 493 . . 263 Initial 196 | . 9 164 . 196 . . 18 50 . . . . 12 . . . . 94 . . . . 53 . . 90 Average 133 | 3 169 76 302 213 . 52 128 149 . . . . 18 . . . . 79 . . . . 231 . . 76 Maximum Alert Level 2 | . 2 . 2 1 . . 1 1 . . . . . . . . . . . . . . 2 . . 1 Low Security (%) 75 | 100 74 100 36 11 . 100 77 64 . . . . 100 . . . . 100 . . . . 56 . . 94 Level 1 16 | . . . 22 88 . . 22 35 . . . . . . . . . . . . . . 30 . . 5 Level 2 7 | . 25 . 40 . . . . . . . . . . . . . . . . . . . 13 . . . Level 3 . | . . . . . . . . . . . . . . . . . . . . . . . . . . . Level 4 . | . . . . . . . . . . . . . . . . . . . . . . . . . . . Level 5 . | . . . . . . . . . . . . . . . . . . . . . . . . . . . High Security . | . . . . . . . . . . . . . . . . . . . . . . . . . . . Max Security . | . . . . . . . . . . . . . . . . . . . . . . . . . . . Squads Dispatched 33 | . 1 . 4 . . . 2 14 . . . . 2 . . . . 2 . . . . 6 . . 2 Investigation 4 | . . . 1 . . . 1 1 . . . . . . . . . . . . . . 1 . . . Extermination 14 | . . . . . . . . 7 . . . . 2 . . . . 2 . . . . 2 . . 1 Reinforcement 9 | . 1 . 3 . . . 1 1 . . . . . . . . . . . . . . 2 . . 1 Assault 1 | . . . . . . . . . . . . . . . . . . . . . . . 1 . . . Garrison 5 | . . . . . . . . 5 . . . . . . . . . . . . . . . . . . Intercept . | . . . . . . . . . . . . . . . . . . . . . . . . . . . Searches Triggered . | . . . . . . . . . . . . . . . . . . . . . . . . . . . Data Miner Redirects 1 | . . . . . . . . . . . . . . . . . . . . . . . 1 . . . Construction Impeded . | . . . . . . . . . . . . . . . . . . . . . . . . . . . Haulers Reinforced 1 | . . . . . . . . . . . . . . . . . . . . . . . 1 . . . Active Scanning Responses . | . . . . . . . . . . . . . . . . . . . . . . . . . . . Cargo Convoy Interrupts . | . . . . . . . . . . . . . . . . . . . . . . . . . . . Stealth | -11 -10 -10 -9 -9 -9 -8 -8 -7 -7 -7 -7 -6 -6 -6 -6 -6 -5 -5 -5 -5 -5 -4 -4 -4 -4 -3 --------- Run | Yrd Mat Min Mat Min Exi Min Mat Fac Low Low Dat Pro Fac Low Low Zio Pro Fac Upp Upp War Pro Fac Upp Upp Res Distress Signals 36 | . 2 . 4 . . 1 . 2 . . . 26 . . . . . . . . . . 1 . . . Communications Jammed 16 | . . . . . . . . . . . . . . . . . . . . . . . 16 . . . Distress Signals 16 | . . . . . . . . . . . . . . . . . . . . . . . 16 . . . Times Spotted 332 | . 25 3 40 . . 6 11 31 13 5 . 6 7 8 6 . 8 7 8 7 50 6 27 23 . 35 Peak Tracking Total 16 | . 7 3 5 . . 3 2 6 7 4 . 2 3 4 1 . 5 2 5 2 16 5 12 8 . 15 Tactical Retreats 31 | . 4 1 2 . . . 1 2 1 . . . . 1 3 . . . . . 3 1 1 3 . 8 Traps | -11 -10 -10 -9 -9 -9 -8 -8 -7 -7 -7 -7 -6 -6 -6 -6 -6 -5 -5 -5 -5 -5 -4 -4 -4 -4 -3 ------- Run | Yrd Mat Min Mat Min Exi Min Mat Fac Low Low Dat Pro Fac Low Low Zio Pro Fac Upp Upp War Pro Fac Upp Upp Res Traps Triggered 6 | . . 1 1 . . . 2 1 . . . . 1 . . . . . . . . . . . . . Indirectly . | . . . . . . . . . . . . . . . . . . . . . . . . . . . Trap Hack Attempts . | . . . . . . . . . . . . . . . . . . . . . . . . . . . Triggered . | . . . . . . . . . . . . . . . . . . . . . . . . . . . Disarmed . | . . . . . . . . . . . . . . . . . . . . . . . . . . . Reprogrammed . | . . . . . . . . . . . . . . . . . . . . . . . . . . . Reused . | . . . . . . . . . . . . . . . . . . . . . . . . . . . Traps Extracted 4 | . . 4 . . . . . . . . . . . . . . . . . . . . . . . . Installed . | . . . . . . . . . . . . . . . . . . . . . . . . . . . Triggered 29 | . . . . . . . . . . . . . . 3 . . . . 1 . 25 . . . . . Most Traps Carried 5 | . . 4 4 4 4 4 4 4 4 4 4 4 4 4 5 5 5 5 5 5 5 5 5 5 5 5 Machines | -11 -10 -10 -9 -9 -9 -8 -8 -7 -7 -7 -7 -6 -6 -6 -6 -6 -5 -5 -5 -5 -5 -4 -4 -4 -4 -3 ---------- Run | Yrd Mat Min Mat Min Exi Min Mat Fac Low Low Dat Pro Fac Low Low Zio Pro Fac Upp Upp War Pro Fac Upp Upp Res Machines Disabled 27 | . 9 . 1 . . 1 . . . . . . 2 . . . . 1 . 1 . . 11 . . 1 Max in Single Turn 9 | . 9 . 1 . . 1 . . . . . . 2 . . . . 1 . 1 . . 6 . . 1 Machines Repaired . | . . . . . . . . . . . . . . . . . . . . . . . . . . . Machines Dismantled . | . . . . . . . . . . . . . . . . . . . . . . . . . . . Machines Sabotaged . | . . . . . . . . . . . . . . . . . . . . . . . . . . . Overloaded Fab Kills . | . . . . . . . . . . . . . . . . . . . . . . . . . . . Hacking | -11 -10 -10 -9 -9 -9 -8 -8 -7 -7 -7 -7 -6 -6 -6 -6 -6 -5 -5 -5 -5 -5 -4 -4 -4 -4 -3 --------- Run | Yrd Mat Min Mat Min Exi Min Mat Fac Low Low Dat Pro Fac Low Low Zio Pro Fac Upp Upp War Pro Fac Upp Upp Res Machines Accessed 55 | . 2 1 8 . 1 . 2 14 . . 4 . 8 1 . . . 6 . . 4 . 2 1 . 1 Terminals 38 | . 2 . 8 . . . 2 10 . . . . 8 1 . . . 5 . . . . 2 . . . Fabricators 4 | . . . . . . . . 2 . . . . . . . . . 1 . . . . . . . 1 Repair Stations . | . . . . . . . . . . . . . . . . . . . . . . . . . . . Recycling Units . | . . . . . . . . . . . . . . . . . . . . . . . . . . . Scanalyzers . | . . . . . . . . . . . . . . . . . . . . . . . . . . . Garrison Access 2 | . . . . . . . . 2 . . . . . . . . . . . . . . . . . . Total Hacks 130 | . 4 1 24 . 1 . 3 26 . . 32 . 14 1 . . . 12 . . 4 . 6 1 . 1 Successful 86 | . 3 1 18 . 1 . 2 9 . . 32 . 6 1 . . . 5 . . 4 . 3 1 . . Failed 44 | . 1 . 6 . . . 1 17 . . . . 8 . . . . 7 . . . . 3 . . 1 Catastrophic 9 | . . . . . . . 1 5 . . . . 2 . . . . . . . . . 1 . . . Database Lockouts . | . . . . . . . . . . . . . . . . . . . . . . . . . . . Manual 40 | . 4 . 13 . 1 . 3 5 . . . . 6 . . . . 4 . . 1 . 3 . . . Terminals 84 | . 4 . 24 . . . 3 21 . . . . 14 1 . . . 11 . . . . 6 . . . Fabricators 4 | . . . . . . . . 2 . . . . . . . . . 1 . . . . . . . 1 Repair Stations . | . . . . . . . . . . . . . . . . . . . . . . . . . . . Recycling Units . | . . . . . . . . . . . . . . . . . . . . . . . . . . . Scanalyzers . | . . . . . . . . . . . . . . . . . . . . . . . . . . . Garrison Access 3 | . . . . . . . . 3 . . . . . . . . . . . . . . . . . . Terminal Hacks 59 | . . 1 7 . 1 . . 5 . . 32 . 4 1 . . . 2 . . 4 . 1 1 . . Record 17 | . . . 1 . . . . . . . 11 . 1 1 . . . . . . 3 . . . . . Part Schematic 14 | . . . . . . . . 1 . . 13 . . . . . . . . . . . . . . . Robot Schematic 5 | . . . . . . . . . . . 5 . . . . . . . . . . . . . . . Robot Analysis 1 | . . . . . . . . 1 . . . . . . . . . . . . . . . . . . Prototype ID Bank 3 | . . . . . . . . . . . 3 . . . . . . . . . . . . . . . Open Door 3 | . . 1 . . . . . . . . . . . . . . . . . . 1 . . 1 . . Branch Access Points 4 | . . . 1 . . . . . . . . . 1 . . . . 1 . . . . 1 . . . Emergency Access Points 1 | . . . 1 . . . . . . . . . . . . . . . . . . . . . . . Terminal Index 2 | . . . 1 . . . . 1 . . . . . . . . . . . . . . . . . . Unreport Threat 3 | . . . 1 . . . . 1 . . . . 1 . . . . . . . . . . . . . Locate Traps 3 | . . . 2 . . . . . . . . . 1 . . . . . . . . . . . . . Patrol Status 1 | . . . . . . . . 1 . . . . . . . . . . . . . . . . . . Hauler Manifests 1 | . . . . . . . . . . . . . . . . . . 1 . . . . . . . . Derelict Proto ID Bank 1 | . . . . . 1 . . . . . . . . . . . . . . . . . . . . . Fabricator Hacks 3 | . . . . . . . . 2 . . . . . . . . . 1 . . . . . . . . Network Status 3 | . . . . . . . . 2 . . . . . . . . . 1 . . . . . . . . Repair Station Hacks . | . . . . . . . . . . . . . . . . . . . . . . . . . . . Recycling Unit Hacks . | . . . . . . . . . . . . . . . . . . . . . . . . . . . Scanalyzer . | . . . . . . . . . . . . . . . . . . . . . . . . . . . Garrison Access Hacks . | . . . . . . . . . . . . . . . . . . . . . . . . . . . Unauthorized Hacks 24 | . 3 . 11 . . . 2 2 . . . . 2 . . . . 2 . . . . 2 . . . Terminals 24 | . 3 . 11 . . . 2 2 . . . . 2 . . . . 2 . . . . 2 . . . Botnet 15 | . 2 . 4 . . . 1 2 . . . . 2 . . . . 2 . . . . 2 . . . Disrupt 1 | . . . 1 . . . . . . . . . . . . . . . . . . . . . . . Skim 8 | . 1 . 6 . . . 1 . . . . . . . . . . . . . . . . . . . Fabricators . | . . . . . . . . . . . . . . . . . . . . . . . . . . . Repair Stations . | . . . . . . . . . . . . . . . . . . . . . . . . . . . Recycling Units . | . . . . . . . . . . . . . . . . . . . . . . . . . . . Scanalyzers . | . . . . . . . . . . . . . . . . . . . . . . . . . . . Garrison Access . | . . . . . . . . . . . . . . . . . . . . . . . . . . . Data Cores Recovered 1 | . 1 . . . . . . . . . . . . . . . . . . . . . . . . . Used . | . . . . . . . . . . . . . . . . . . . . . . . . . . . Hacking Detections 39 | . 2 . 7 . . . 2 12 . . . . 7 . . . . 6 . . . . 2 . . 1 Full Trace Events 2 | . . . . . . . . 1 . . . . . . . . . . . . . . 1 . . . Feedback Events . | . . . . . . . . . . . . . . . . . . . . . . . . . . . Feedback Blocked . | . . . . . . . . . . . . . . . . . . . . . . . . . . . Robot Schematics Acquired 7 | . . . . . . . . . . . 5 . . . . 2 . . . . . . . . . . Robots Built . | . . . . . . . . . . . . . . . . . . . . . . . . . . . Authchips . | . . . . . . . . . . . . . . . . . . . . . . . . . . . Time . | . . . . . . . . . . . . . . . . . . . . . . . . . . . Total Robot Build Rating . | . . . . . . . . . . . . . . . . . . . . . . . . . . . Part Schematics Acquired 28 | . . . . . . . . 1 . . 13 . . . . 14 . . . . . . . . . . Parts Built . | . . . . . . . . . . . . . . . . . . . . . . . . . . . Authchips . | . . . . . . . . . . . . . . . . . . . . . . . . . . . Time . | . . . . . . . . . . . . . . . . . . . . . . . . . . . Total Part Build Rating . | . . . . . . . . . . . . . . . . . . . . . . . . . . . Parts Repaired . | . . . . . . . . . . . . . . . . . . . . . . . . . . . Time . | . . . . . . . . . . . . . . . . . . . . . . . . . . . Parts Recycled . | . . . . . . . . . . . . . . . . . . . . . . . . . . . Recycled Matter . | . . . . . . . . . . . . . . . . . . . . . . . . . . . Retrieved Matter . | . . . . . . . . . . . . . . . . . . . . . . . . . . . Retrieved Components . | . . . . . . . . . . . . . . . . . . . . . . . . . . . Parts Scanalyzed . | . . . . . . . . . . . . . . . . . . . . . . . . . . . Part Schematics Acquired . | . . . . . . . . . . . . . . . . . . . . . . . . . . . Parts Damaged . | . . . . . . . . . . . . . . . . . . . . . . . . . . . Bothacking | -11 -10 -10 -9 -9 -9 -8 -8 -7 -7 -7 -7 -6 -6 -6 -6 -6 -5 -5 -5 -5 -5 -4 -4 -4 -4 -3 ------------ Run | Yrd Mat Min Mat Min Exi Min Mat Fac Low Low Dat Pro Fac Low Low Zio Pro Fac Upp Upp War Pro Fac Upp Upp Res Used RIF Installer . | . . . . . . . . . . . . . . . . . . . . . . . . . . . Robots Hacked . | . . . . . . . . . . . . . . . . . . . . . . . . . . . Non-combat . | . . . . . . . . . . . . . . . . . . . . . . . . . . . Combat . | . . . . . . . . . . . . . . . . . . . . . . . . . . . Robot Hacks Applied . | . . . . . . . . . . . . . . . . . . . . . . . . . . . Relay Couplers Released . | . . . . . . . . . . . . . . . . . . . . . . . . . . . Fabnet Peak Effective % . | . . . . . . . . . . . . . . . . . . . . . . . . . . . Robots Rewired 4 | . . . . . . . . . . . . . . . . . . . . . 4 . . . . . Allies Hacked . | . . . . . . . . . . . . . . . . . . . . . . . . . . . Hacks Repelled . | . . . . . . . . . . . . . . . . . . . . . . . . . . . Allies | -11 -10 -10 -9 -9 -9 -8 -8 -7 -7 -7 -7 -6 -6 -6 -6 -6 -5 -5 -5 -5 -5 -4 -4 -4 -4 -3 -------- Run | Yrd Mat Min Mat Min Exi Min Mat Fac Low Low Dat Pro Fac Low Low Zio Pro Fac Upp Upp War Pro Fac Upp Upp Res Total Allies 9 | . . 3 . . . . . . . . . . . . . . . 2 . . 4 . . . . . Largest Group 4 | . . 3 2 . . . . . . . . . . . . . . 2 2 2 4 1 . . . . Highest-Rated Group 223 | . . 40 32 . . . . . . . . . . . . . . 192 192 192 223 65 . . . . Highest-Rated Ally 96 | . . 16 16 . . . . . . . . . . . . . . 96 96 96 68 65 . . . . Total Orders . | . . . . . . . . . . . . . . . . . . . . . . . . . . . Ally Attacks 81 | . . 2 23 . . . . . . . . . . . . . . . 19 17 20 . . . . . Total Damage 3025 | . . 24 278 . . . . . . . . . . . . . . . 681 715 1327 . . . . . Kills 25 | . . 1 4 . . . . . . . . . . . . . . . 8 6 6 . . . . . Allies Corrupted . | . . . . . . . . . . . . . . . . . . . . . . . . . . . Allies Melted . | . . . . . . . . . . . . . . . . . . . . . . . . . . . Intel | -11 -10 -10 -9 -9 -9 -8 -8 -7 -7 -7 -7 -6 -6 -6 -6 -6 -5 -5 -5 -5 -5 -4 -4 -4 -4 -3 ------- Run | Yrd Mat Min Mat Min Exi Min Mat Fac Low Low Dat Pro Fac Low Low Zio Pro Fac Upp Upp War Pro Fac Upp Upp Res Robot Analysis Total 1 | . . . . . . . . 1 . . . . . . . . . . . . . . . . . . Derelict Logs Recovered 12 | . . 1 . 1 . . . . . 1 . 1 . 1 1 1 . . 1 1 . 2 . 1 . . Drone Launches . | . . . . . . . . . . . . . . . . . . . . . . . . . . . Drone Recoveries . | . . . . . . . . . . . . . . . . . . . . . . . . . . . Exploration | -11 -10 -10 -9 -9 -9 -8 -8 -7 -7 -7 -7 -6 -6 -6 -6 -6 -5 -5 -5 -5 -5 -4 -4 -4 -4 -3 ------------- Run | Yrd Mat Min Mat Min Exi Min Mat Fac Low Low Dat Pro Fac Low Low Zio Pro Fac Upp Upp War Pro Fac Upp Upp Res Turns Passed 21416 | 111 841 1066 1435 375 397 886 557 2493 399 724 125 700 1684 824 1031 1293 340 795 446 526 1180 358 931 960 86 853 Spaces Moved 12212 | 48 382 632 572 199 246 432 258 1327 196 307 79 328 834 578 686 976 198 543 296 402 780 267 360 456 74 756 Core 41 | 15 . . . . . . . . . . . . . . . . . . . . . . . . . 26 Treads 5477 | 33 382 631 572 199 246 432 258 1327 196 307 79 328 463 . . . 24 . . . . . . . . . Legs 3699 | . . 1 . . . . . . . . . . . . . . . 532 296 402 780 267 360 456 74 531 Wheels 2796 | . . . . . . . . . . . . . 371 578 686 976 174 11 . . . . . . . . Hover . | . . . . . . . . . . . . . . . . . . . . . . . . . . . Flight 199 | . . . . . . . . . . . . . . . . . . . . . . . . . . 199 Fastest Speed 45 | 50 160 160 160 160 160 160 160 160 160 160 160 160 130 130 130 130 130 120 120 120 115 115 115 115 115 45 Average Speed 144 | 162 160 160 160 160 160 160 160 160 160 179 160 174 172 130 130 130 146 121 120 120 117 115 174 172 115 96 Slowest Speed 330 | 250 160 200 160 160 160 160 160 240 160 240 160 240 240 145 145 145 250 330 120 120 185 115 185 185 115 200 Overloaded Moves . | . . . . . . . . . . . . . . . . . . . . . . . . . . . Propulsion Burnouts . | . . . . . . . . . . . . . . . . . . . . . . . . . . . Robots Hopped 9 | . . . . . . . . . . . . . . . . . . . . . . . . . . 9 Cave-ins Triggered . | . . . . . . . . . . . . . . . . . . . . . . . . . . . Exploration Rate (%) 48 | 3 64 93 67 26 60 76 24 44 42 61 69 40 19 58 74 84 40 14 56 61 81 37 13 55 16 21 Regions Visited 26 Branch Regions 18 Pre-discovered Areas 8 | . . . 5 . . . . . . . 1 . . . . 1 . . . . . 1 . . . . Known Exits Taken 9 | . . . 1 . . 1 . . 1 . . 1 1 1 . . 1 1 . . . . 1 . . . Unknown Exits Taken 17 | 1 1 1 . 1 1 . 1 1 . 1 1 . . . 1 1 . . 1 1 1 1 . 1 1 . Scrap Searched 33 | . . 1 . 1 . . . . 1 . . 1 . 9 4 3 3 . 2 2 . 1 . 3 2 . Spaces Dug 94 | . . . . . . 15 . 5 . . . . 7 22 . . . 4 . . 2 . 20 . . 19 Terrain Destroyed 482 | . 47 . . . . 40 . 5 24 35 . . 17 60 15 . . 4 8 . 2 37 113 56 . 19 Melee 50 | . . . . . . . . 5 . . . . 7 . . . . 4 . . 2 . 20 . . 12 Projectile 69 | . . . . . . . . . . 1 . . . . 1 . . . . . . 1 16 43 . 7 AOE 363 | . 47 . . . . 40 . . 24 34 . . 10 60 14 . . . 8 . . 36 77 13 . . Terrain Rammed . | . . . . . . . . . . . . . . . . . . . . . . . . . . . Walls Destroyed . | . . . . . . . . . . . . . . . . . . . . . . . . . . . Machines Disabled . | . . . . . . . . . . . . . . . . . . . . . . . . . . . Actions | -11 -10 -10 -9 -9 -9 -8 -8 -7 -7 -7 -7 -6 -6 -6 -6 -6 -5 -5 -5 -5 -5 -4 -4 -4 -4 -3 --------- Run | Yrd Mat Min Mat Min Exi Min Mat Fac Low Low Dat Pro Fac Low Low Zio Pro Fac Upp Upp War Pro Fac Upp Upp Res Total 14940 | 70 553 681 967 231 250 612 353 1572 255 467 78 388 1034 621 810 998 227 658 382 429 1021 300 550 537 74 822 Wait 1780 | 8 129 36 290 17 . 169 60 129 40 151 . 9 121 21 106 . 5 73 78 6 138 21 120 24 . 29 Move 12170 | 47 381 631 571 198 245 431 257 1326 195 306 78 327 833 577 685 975 197 542 295 401 779 266 359 455 73 740 Hop 7 | . . . . . . . . . . . . . . . . . . . . . . . . . . 7 Pick Up 89 | 4 5 3 13 1 2 . 1 15 1 . . 3 13 . 1 4 3 6 1 3 4 . 1 2 . 3 Fast Attach 81 | 7 . 3 4 . . . 1 5 . 1 . 1 12 1 1 6 2 7 2 1 16 . 1 3 1 6 Attach 46 | . . . 4 . . . 1 2 5 1 . 4 3 1 3 . . 2 . . . 1 7 7 . 5 Detach 12 | . . . 1 . . . . . . . . . 3 . . 1 . 2 . . 3 . 1 . . 1 Swap 99 | . 4 2 8 2 1 4 5 16 1 2 . 1 7 5 5 3 3 4 2 7 6 3 5 2 . 1 Drop 115 | . 1 2 17 2 2 . 5 16 . . . . 16 2 1 8 5 10 2 4 21 . 1 . . . Fire 406 | 4 29 1 58 11 . 8 23 55 13 6 . 40 16 14 6 . 12 5 2 6 7 9 26 44 . 11 Melee 81 | . . . . . . . . 7 . . . 3 10 . . 1 . 5 . 1 7 . 29 . . 18 Ram . | . . . . . . . . . . . . . . . . . . . . . . . . . . . Kick 3 | . . . . . . . . . . . . . . . . . . 2 . . . . . . . 1 Crush 9 | . 4 3 1 . . . . 1 . . . . . . . . . . . . . . . . . . Escape Stasis . | . . . . . . . . . . . . . . . . . . . . . . . . . . . Rewire 42 | . . . . . . . . . . . . . . . 2 . . . . . 40 . . . . . Trap . | . . . . . . . . . . . . . . . . . . . . . . . . . . . Miscellaneous . | . . . . . . . . . . . . . . . . . . . . . . . . . . . Route ------- -11/Scrapyard -10/Materials (discovered 2 exits: *Mat / *Min) -10/Mines -9/Materials (discovered 3 exits: *Mat x2 / *Min) -9/Mines (discovered 2 exits: *Mat / *Exi) -9/Exiles -8/Mines -8/Materials -7/Factory (discovered 4 exits: *Fac x3 / [*Low]) -7/Lower Caves -7/Lower Caves -7/Data Miner -6/Proximity Caves -6/Factory (discovered 5 exits: Fac / *Low x2 / Ext x2) -6/Lower Caves -6/Lower Caves (discovered 2 exits: *Fac / [*Zio]) -6/Zion -5/Proximity Caves -5/Factory (discovered 2 exits: *Upp x2) -5/Upper Caves -5/Upper Caves -5/Warlord -4/Proximity Caves -4/Factory (discovered 2 exits: *Upp x2) -4/Upper Caves -4/Upper Caves -3/Research (discovered 2 exits: Res / Qua) History --------- Turn | Location | Event 21 | -11/Scrapyard | Discovered new exit (range 16) 112 | -11/Scrapyard | Entered Materials 284 | -10/Materials | Discovered new exit (range 14) 303 | -10/Materials | Build established: Mutant 563 | -10/Materials | Discovered new exit (range 9) 953 | -10/Materials | Entered Mines 958 | -10/Mines | Met a Derelict bent on vengeance 1177 | -10/Mines | Met a Derelict who couldn't figure out how to use a Trap Extractor 1380 | -10/Mines | Assisted by bots powering up and referring to "LRC-V3" 1438 | -10/Mines | Learned Materials garrison access intel 1601 | -10/Mines | A weapon hastily lodged in a ceiling crevice suddenly fell to the ground 1625 | -10/Mines | Discovered new exit (range 15) 2019 | -10/Mines | Entered Materials 2019 | -9/Materials | Accompanied by 2 allies 2019 | -9/Materials | Evolved 2 slots: Propulsion x1, Weapon x1 2106 | -9/Materials | Identified exit to Mines 2319 | -9/Materials | Build established: Gunner 2370 | -9/Materials | Discovered new exit (range 5) 2996 | -9/Materials | Build established: Tank 3073 | -9/Materials | Learned Storage emergency access door positions 3133 | -9/Materials | Learned 4 Recycling zone layouts 3185 | -9/Materials | Learned 4 Recycling zone layouts 3282 | -9/Materials | Identified exit to Materials 3292 | -9/Materials | Learned Storage stockpile data 3312 | -9/Materials | Learned location of Recycling (-7) 3388 | -9/Materials | Loaded intel: 23 trap records 3443 | -9/Materials | Learned location of Zion (-6) 3454 | -9/Materials | Entered Mines 3592 | -9/Mines | Learned location of 1 exit from Lower Caves 3598 | -9/Mines | Deemed a non-threat by the Exiles lab entrance 3600 | -9/Mines | Discovered new exit (range 5) 3628 | -9/Mines | Discovered exit to Materials (range 9) 3829 | -9/Mines | Entered Exiles 3866 | -9/Exiles | Met 8R-AWN 3895 | -9/Exiles | Met EX-HEX 3943 | -9/Exiles | Met EX-BIN 3965 | -9/Exiles | Aligned with FarCom system 3967 | -9/Exiles | Given EX-Vault access code 4005 | -9/Exiles | Opened EX-Vault 4016 | -9/Exiles | Found Cloak of Protection 4052 | -9/Exiles | Warned to stay clear of 0b10 Research branches 4098 | -9/Exiles | Met EX-DEC 4207 | -9/Exiles | Discovered new exit (range 14) 4226 | -9/Exiles | Left Exiles lab with Cloak of Protection 4226 | -9/Exiles | Entered Mines 4524 | -8/Mines | Build established: Skirmisher 5027 | -8/Mines | Discovered exit to Materials (range 4) 5112 | -8/Mines | Entered Materials 5112 | -8/Materials | Evolved 2 slots: Utility x1, Weapon x1 5113 | -8/Materials | Loaded intel: 1 garrison access location 5461 | -8/Materials | Discovered new exit (range 11) 5669 | -8/Materials | Entered Factory 5669 | -7/Factory | Evolved 2 slots: Propulsion x1, Utility x1 6094 | -7/Factory | Discovered new exit (range 5) 6103 | -7/Factory | Identified exit to Factory 6885 | -7/Factory | Garrison activated, responded to threat 7013 | -7/Factory | Discovered exit to Factory (range 9) 7636 | -7/Factory | Discovered exit to Factory (range 16) 7998 | -7/Factory | Garrison activated, responded to threat 8128 | -7/Factory | Discovered new exit (range 16) 8162 | -7/Factory | Entered Lower Caves 8163 | -7/Lower Caves | Identified exit to Lower Caves 8438 | -7/Lower Caves | Build established: Gunner 8538 | -7/Lower Caves | Lost 4 parts (1n1u2w) 8561 | -7/Lower Caves | Entered another Lower Caves area 8597 | -7/Lower Caves | Attracted the attention of an 0b10 checkpoint 8663 | -7/Lower Caves | Lost 3 parts (1p1n1u) 8909 | -7/Lower Caves | Encountered a Warlord checkpoint 8950 | -7/Lower Caves | Build established: Scavenger-Gunner 9107 | -7/Lower Caves | Learned location of 1 exit from Factory 9277 | -7/Lower Caves | Discovered new exit (range 6) 9285 | -7/Lower Caves | Entered Data Miner 9285 | -7/Data Miner | Discovered new exit (range 6) 9316 | -7/Data Miner | Met Data Miner 9348 | -7/Data Miner | Learned location of Section 7 (-2) 9348 | -7/Data Miner | Acquired the access code to Warlord's prototype stash 9373 | -7/Data Miner | Received God Mode back door access code from Data Miner 9410 | -7/Data Miner | Entered Proximity Caves 9412 | -6/Proximity Caves | Attracted the attention of an 0b10 checkpoint 9688 | -6/Proximity Caves | Learned location of 1 exit from Lower Caves 9959 | -6/Proximity Caves | Lost 3 allies 9964 | -6/Proximity Caves | Discovered exit to Factory (range 14) 9979 | -6/Proximity Caves | Lost 5 parts (1p1n1u2w) 10110 | -6/Proximity Caves | Entered Factory 10110 | -6/Factory | Evolved 2 slots: Utility x2 10111 | -6/Factory | Identified exit to Factory 10123 | -6/Factory | Identified exit to Lower Caves 10123 | -6/Factory | Identified exit to Extension 11794 | -6/Factory | Entered Lower Caves 11795 | -6/Lower Caves | Encountered a Warlord checkpoint 11795 | -6/Lower Caves | Identified exit to Lower Caves 12176 | -6/Lower Caves | Attracted the attention of an 0b10 checkpoint 12257 | -6/Lower Caves | Spotted B-75 Beast 12618 | -6/Lower Caves | Entered another Lower Caves area 12624 | -6/Lower Caves | Discovered exit to Factory (range 14) 13053 | -6/Lower Caves | Spotted B-75 Beast 13433 | -6/Lower Caves | Learned Factory trap positions 13450 | -6/Lower Caves | Discovered new exit (range 12) 13649 | -6/Lower Caves | Entered Zion 13692 | -6/Zion | System corruption cleaned by Quarantine Array 14041 | -6/Zion | Found CR-A16's Pointy Stick 14083 | -6/Zion | Given the Hacking Drone Bay 14094 | -6/Zion | Found Prototype Device 14135 | -6/Zion | Learned location of 1 exit from Proximity Caves 14247 | -6/Zion | Found Prototype Device 14247 | -6/Zion | Identified Bomb Factory No. 2 14450 | -6/Zion | Rebuked by Imprinter 14838 | -6/Zion | Given A8's code to call for help 14841 | -6/Zion | Discovered new exit (range 10) 14942 | -6/Zion | Entered Proximity Caves 15051 | -5/Proximity Caves | Found DCF Scrap (13 items) 15280 | -5/Proximity Caves | Attracted the attention of an 0b10 checkpoint 15282 | -5/Proximity Caves | Entered Factory 15282 | -5/Factory | Evolved 2 slots: Power x1, Utility x1 15283 | -5/Factory | Identified exit to Upper Caves 15284 | -5/Factory | Loaded intel: 111 trap records 15865 | -5/Factory | Found Prototype Launcher 15865 | -5/Factory | Identified Mni. Smartbomb Launcher 15976 | -5/Factory | Enhanced Grunt warped into view, answering call for help 15979 | -5/Factory | Enhanced Grunt warped into view, answering call for help 16077 | -5/Factory | Entered Upper Caves 16077 | -5/Upper Caves | Accompanied by 2 allies 16379 | -5/Upper Caves | Build established: Gunner 16444 | -5/Upper Caves | Learned Factory trap positions 16478 | -5/Upper Caves | Attracted the attention of an 0b10 checkpoint 16508 | -5/Upper Caves | Discovered new exit (range 11) 16523 | -5/Upper Caves | Entered another Upper Caves area 16523 | -5/Upper Caves | Accompanied by 2 allies 16718 | -5/Upper Caves | Learned Factory machine intel 16896 | -5/Upper Caves | Attacked by a delusional Derelict stockpiling parts 17033 | -5/Upper Caves | Discovered new exit (range 14) 17049 | -5/Upper Caves | Entered Warlord 17113 | -5/Warlord | System corruption cleaned by Quarantine Array 17125 | -5/Warlord | Build established: Scavenger-Gunner 17245 | -5/Warlord | Found Prototype Device 17245 | -5/Warlord | Identified Minesniffer Drone Bay 17449 | -5/Warlord | Warlord's base attacked by MAIN.C 17492 | -5/Warlord | Met Warlord 17508 | -5/Warlord | Opened Warlord's prototype stash 17523 | -5/Warlord | Found Prototype Device 17523 | -5/Warlord | Identified Exp. Phase Shifter 17535 | -5/Warlord | Found Prototype Device 17535 | -5/Warlord | Identified Thermal Barrier 17546 | -5/Warlord | Found Prototype Reactor 17546 | -5/Warlord | Identified Vortex Chain Reactor 17553 | -5/Warlord | Identified Hacking Drone Bay 17645 | -5/Warlord | Found Prototype Energy Gun 17645 | -5/Warlord | Identified Vortex Rail 17650 | -5/Warlord | Found Vortex Rail 17660 | -5/Warlord | Found Vortex Rail 17695 | -5/Warlord | Learned Research trap positions 17696 | -5/Warlord | Learned 4 Command zone layouts 17697 | -5/Warlord | Learned Research security intel 17799 | -5/Warlord | Warlord forces counterattacked 17808 | -5/Warlord | Build established: Commander-Tank 17853 | -5/Warlord | Spotted Striker 17854 | -5/Warlord | Spotted Executioner 17864 | -5/Warlord | Allies destroyed Executioner 17903 | -5/Warlord | Spotted Striker 17905 | -5/Warlord | P-70 Sage assimilated allied V4-MUD(g) 17921 | -5/Warlord | P-70 Sage assimilated allied 1E-QFK(g) 17922 | -5/Warlord | Spotted Executioner 17924 | -5/Warlord | Spotted Executioner 17979 | -5/Warlord | Lost 19 allies 17982 | -5/Warlord | Spotted Executioner 18056 | -5/Warlord | Lost 8 allies 18124 | -5/Warlord | Warlord base infiltrated, sounded retreat 18129 | -5/Warlord | Spotted Executioner 18209 | -5/Warlord | Discovered new exit (range 15) 18216 | -5/Warlord | Build established: Tank 18229 | -5/Warlord | Entered Proximity Caves 18229 | -4/Proximity Caves | Accompanied by 1 ally 18242 | -4/Proximity Caves | Learned Research terminal intel 18255 | -4/Proximity Caves | Spotted B-86 Titan 18392 | -4/Proximity Caves | Learned location of Testing (-2) 18534 | -4/Proximity Caves | Discovered new exit (range 14) 18587 | -4/Proximity Caves | Entered Factory 18587 | -4/Factory | Evolved 2 slots: Utility x2 18588 | -4/Factory | Loaded intel: 113 trap records 18589 | -4/Factory | Loaded intel: 265 machine locations 18691 | -4/Factory | Identified exit to Upper Caves 18719 | -4/Factory | Incoming investigation squad redirected 19173 | -4/Factory | Build established: Derelict-Assassin 19364 | -4/Factory | First assault squad dispatched 19508 | -4/Factory | Build established: Assassin 19518 | -4/Factory | Entered Upper Caves 19530 | -4/Upper Caves | Attracted the attention of an 0b10 checkpoint 19785 | -4/Upper Caves | Learned location of 2 exits from Research 19887 | -4/Upper Caves | Build established: Derelict-Gunner 20383 | -4/Upper Caves | Spotted B-86 Titan 20440 | -4/Upper Caves | Attracted the attention of an 0b10 outpost 20472 | -4/Upper Caves | Discovered new exit (range 6) 20475 | -4/Upper Caves | Lost 4 parts (1n3w) 20478 | -4/Upper Caves | Entered another Upper Caves area 20501 | -4/Upper Caves | Discovered new exit (range 11) 20564 | -4/Upper Caves | Entered Research 20564 | -3/Research | Evolved 2 slots: Propulsion x1, Utility x1 20565 | -3/Research | Identified exit to Quarantine 20565 | -3/Research | Identified exit to Research 20566 | -3/Research | Loaded intel: 69 trap records 20568 | -3/Research | Loaded intel: 25 terminal locations 20851 | -3/Research | Build established: Assassin 21132 | -3/Research | Lost 6 parts (1p1n4u) 21241 | -3/Research | Lost 3 parts (1p1n1w) 21281 | -3/Research | Released all parts (7) 21291 | -3/Research | Core integrity fell below 50% 21385 | -3/Research | Build established: Mutant 21386 | -3/Research | Core integrity fell below 20% 21417 | -3/Research | Destroyed by S-43 Plague with Heavy Machine Gun Last Messages --------------- 21317_ Terminal disabled. 21331_ Adv. Hacking Suite destroyed. 21334_ K-01 Serf cleans the Terminal. 21343_ Acquired Unknown Ballistic Gun. 21343_ Identified KE Penetrator. 21350_ Slug penetrates Wall. 21358_ Vortex penetrates Wall. 21364_ Acquired Adv. System Shield. 21370_ Vortex penetrates Reinforced Barrier. 21377_ Vortex penetrates Wall. 21377_ Vortex penetrates Repair Station. 21377_ Repair Station disabled. 21390_ Acquired Impulse Thruster. 21394_ Vortex penetrates Wall. 21394_ Vortex penetrates S-43 Plague. 21394_ Destroyed Xenon Bombardment Thruster. 21395_ Impulse Thruster destroyed. 21396_ Vortex Rail destroyed. 21404_ Impulse Thruster Array destroyed. 21407_ Drone sends a signal. Map ----- +----------------------------------------------------+ | ##### ""?????# #??? | | #????????# ## #??? | | #????????##+###+# #??? | | #????????# ??# #??? | | ###??????# = # ##?? | | "#??????#! #^^^^^ #?? | | ""#??????# # ##?? | | ""#??????# #####s#??? | | ""#??????# ! #???# #??? | | ""#??????########???# #??? | | T"#?????????????????# #??? | | ""#?????????????????# #??? | | ""#?????????????????# #??? | | ""#?????????????????# #??? | | ""#?????????????????# #??? | | ! "#?????????????????# #??? | | ###?????????????????# #??? | | #???????????????????# #??? | | #???????????????????# #??? | | ##/##???????????????????# #??? | | ?# #????????????????????# #??? | | ?# #???###??????????????# #??? | | ?# #??? #??????????????# #??? | | ?# ##? #??????????????# #??? | | ?# +? #??????????????# #??? | | ?# # #??????????????#@#??? | | ## # #??????????????# #??? | | + #??????????????# #??? | | # =#??????????????# #??? | | # #??????????????# #??? | | #? #????###???????# #??? | | ####### #???????# #??? | | ! #???????# #??? | | ????? #??? | | # #???????##???? | | ###/####### #????????????? | | #???????###????????????? | | #??????????????????????? | | ###????????????????????? | | ######???????????????? | | = # #???????????????? | | # #???????????????? | | # #???????????????? | | # #???????????????? | | ####### ! #???????????????? | | ??????# !#???????????????? | | ?#########+###???????????????? | | ?# + #?????????????????? | | ?# ## #?????????????????? | | ?# ??## ##????????????????? | +----------------------------------------------------+ Best States ------------- Heat Dissipation 77 Energy Generation 55 Energy Capacity 700 Matter Stores 300 Matter Capacity 300 Sight Range 18 Terrain Scan Range 20 Terrain Scan Density 85 Jamming Range 14 Cloak Strength 5 Armor Coverage 600 Resistance: KI 30 Resistance: TH 50 Phase Shifting 20 Evasion (%) 75 Targeting Accuracy 16 Target Analysis 5 Recoil Reduction 4 Matter Filtering 30 Particle Charging 20 Kinecelleration 40 Offensive Hacking 14 Defensive Hacking 14 Trap Extractor Capacity 6 Item Schematics ----------------- Imp. Medium Armor Plating | -7/Factory | Hacked Combat Drone Bay | -7/Data Miner | Free Lgt. Regenerative Plating | -7/Data Miner | Free Cld. Cesium-ion Thruster | -7/Data Miner | Free Gravity Neutralizer | -7/Data Miner | Free Shock Maul | -7/Data Miner | Free Hvy. Treads | -7/Data Miner | Free Imp. Kinecellerator | -7/Data Miner | Free Wave Gun | -7/Data Miner | Free Plasma Rifle | -7/Data Miner | Free Mass Driver | -7/Data Miner | Free Imp. Plasma Cutter | -7/Data Miner | Free Impulse Thruster | -7/Data Miner | Free Phase Gun | -7/Data Miner | Free Thermic Laser | -6/Zion | Archive Imp. Arc Projector | -6/Zion | Archive Adv. System Shield | -6/Zion | Archive Remote Shield | -6/Zion | Archive Field Propulsion Drive | -6/Zion | Archive Lgt. Angular Momentum Engine | -6/Zion | Archive Adv. Focal Shield | -6/Zion | Archive Adv. Reaction Control System | -6/Zion | Archive Imp. Heavy Armor Plating | -6/Zion | Archive Fusion Compressor | -6/Zion | Archive Hyp. Coil Gun | -6/Zion | Archive EM Disruption Field | -6/Zion | Archive Focal Shield | -6/Zion | Archive Tiamat Missile Launcher | -6/Zion | Archive Robot Schematics ------------------ H-66 Slayer | -7/Data Miner | Free W-25 Informer | -7/Data Miner | Free M-28 Smith | -7/Data Miner | Free S-27 Virus | -7/Data Miner | Free B-48 Gladiator | -7/Data Miner | Free A-15 Conveyor | -6/Zion | Archive R-06 Scavenger | -6/Zion | Archive Fabricated ------------ Nothing Alien Tech Used ----------------- None Achievements -------------- Dodgeball, But With Guns Challenges ------------ None Game ------ Seed AbsorptionMinesnifferAutogun Manual? 0 Play Time 02:52:13 Cumulative 64.6 hours Start 2024.12.08 @ 18:38:38 End 2024.12.08 @ 21:37:18 Sessions 1 Manual Loads 0 Difficulty Rogue Special Mode None Game No. 31 Rogue 31 Adventurer 0 Explorer 0 Win Type - Total 7 Types 7/0/0/0/0/0/0/0/0 Lore% 49 Gallery% 49 Achievement% 44 Wizard Run 0 Options --------- Layout 1 ASCII 1 Keyboard 0 Movement Vi Keybinds 0 Fullscreen 1 Font 18/SmallcapsGlow Map View 54x44 Zoom Use 0% Tactical HUD 1 Map Filters NONE Filters NONE Steam 0 RUN: efc4e84f-c45d-4d48-b7fb-4ecef4ec58c4